bitfinex/quotes_SOLUSD_20260213
["timestamp","ask_amount","ask_price","bid_price","bid_amount"]
[1770997831286,0.47994977,83.209,83.175,12.02272058]
[1770997831492,0.47994977,83.199,83.168,34.78]
[1770997831689,42.05820855,83.218,83.15,15.38709209]
[1770997831690,10.76979957,83.21,83.171,0.47700149]
[1770997831901,0.47994977,83.217,83.171,0.47700149]
[1770997832088,0.47994977,83.217,83.18,10.76979957]
[1770997832293,0.47994977,83.243,83.193,0.47700149]
[1770997832498,48.04146956,83.262,83.193,0.47700149]
[1770997832499,10.76979957,83.23,83.193,0.47700149]
[1770997832802,42.0460825,83.242,83.184,12.0215426]
[1770997832803,0.47994977,83.219,83.184,12.0215426]
[1770997832980,10.76979957,83.21,83.184,12.0215426]
[1770997833176,0.47994977,83.219,83.184,12.0215426]
[1770997833390,48.46979957,83.23,83.185,0.47700149]
[1770997833574,10.76979957,83.22,83.185,0.47700149]
[1770997833782,10.76979957,83.21,83.179,12.02219938]
[1770997834183,10.76979957,83.21,83.174,0.47700149]
[1770997834184,11.24974934,83.21,83.174,0.47700149]
[1770997834495,12.01807518,83.208,83.175,12.0228434]
[1770997834683,0.47994977,83.226,83.181,0.47700149]
[1770997834881,0.47994977,83.229,83.181,0.47700149]
[1770997835084,10.76979957,83.21,83.175,12.0228434]
[1770997835798,10.76979957,83.24,83.191,0.47700149]
[1770997835991,10.76979957,83.23,83.191,0.47700149]
[1770997836184,0.47994977,83.239,83.191,0.47700149]
[1770997836378,12.01374372,83.238,83.201,12.49608779]
[1770997836578,12.01374372,83.238,83.202,0.46028567]
[1770997836816,12.0121563,83.249,83.202,0.46028567]
[1770997837000,42.04254705,83.249,83.202,0.46028567]
[1770997837299,10.76979957,83.24,83.202,0.46028567]
[1770997837499,42.04254705,83.249,83.199,34.8]
[1770997837500,11.25434894,83.23,83.199,34.8]
[1770997837701,0.48454937,83.229,83.199,34.8]
[1770997837886,0.48454937,83.229,83.182,0.46028567]
[1770997838081,10.76979957,83.24,83.191,0.46028567]
[1770997838299,12.01359939,83.239,83.202,12.01894185]
[1770997838490,12.01359939,83.239,83.203,0.46028567]
[1770997838982,12.01230059,83.248,83.211,0.46028567]
[1770997840008,12.01230059,83.248,83.221,0.46028567]
[1770997840301,12.21070626,83.26,83.215,42.0597248]
[1770997840503,22.98050583,83.26,83.222,34.8]
[1770997840692,0.48454937,83.239,83.216,0.46028567]
[1770997840879,0.48454937,83.239,83.195,12.01995312]
[1770997841081,10.76979957,83.23,83.196,0.46028567]
[1770997841278,10.76979957,83.24,83.201,0.46028567]
[1770997841503,37.66,83.249,83.194,46.81997293]
[1770997841504,0.48454937,83.229,83.194,46.81997293]
[1770997842001,10.76979957,83.24,83.201,0.46028567]
[1770997842303,10.76979957,83.29,83.231,0.46028567]
[1770997842496,0.48454937,83.289,83.24,10.76979957]
[1770997842805,10.76979957,83.28,83.24,10.76979957]
[1770997842993,10.76979957,83.28,83.232,76.87113417]
[1770997842994,0.48454937,83.289,83.25,10.76979957]
[1770997843193,10.76979957,83.29,83.25,10.76979957]
[1770997843398,10.76979957,83.29,83.249,34.82]
[1770997843594,10.76979957,83.28,83.24,10.76979957]
[1770997843790,10.76979957,83.28,83.245,34.82]
[1770997843990,42.01579793,83.302,83.231,0.46028567]
[1770997843991,10.76979957,83.26,83.231,0.46028567]
[1770997844293,10.76979957,83.26,83.226,0.46028567]
[1770997844294,12.01071355,83.259,83.226,0.46028567]
[1770997844494,10.76979957,83.25,83.223,12.01579223]
[1770997844807,0.48454937,83.229,83.189,0.46028567]
[1770997845001,0.48454937,83.254,83.201,0.46028567]
[1770997845209,10.76979957,83.24,83.201,0.46028567]
[1770997845381,10.76979957,83.25,83.21,10.76979957]
[1770997846006,37.6,83.26,83.22,10.76979957]
[1770997846007,22.78050577,83.26,83.22,10.76979957]
[1770997846310,22.78050577,83.26,83.211,34.82]
[1770997846900,0.48454937,83.249,83.212,12.01749747]
[1770997847196,0.48454937,83.249,83.211,34.82]
[1770997847197,10.76979957,83.24,83.211,34.82]
[1770997847601,90.40692902,83.26,83.213,0.46028567]
[1770997847802,90.40692902,83.26,83.212,12.01749747]
[1770997847803,10.76979957,83.24,83.212,12.01749747]
[1770997848005,10.76979957,83.22,83.19,0.46028567]
[1770997848306,11.25434894,83.23,83.191,0.46028567]
[1770997848711,0.48454937,83.23,83.191,0.46028567]
[1770997848911,12.01504283,83.229,83.192,12.02038657]
[1770997849107,12.0144901,83.233,83.193,0.46028567]
[1770997849402,10.76979957,83.23,83.193,0.46028567]
[1770997849604,10.76979957,83.23,83.191,34.82]
[1770997849605,0.48454937,83.219,83.186,12.02120119]
[1770997850199,10.76979957,83.22,83.187,0.46028567]
[1770997850800,0.48454937,83.229,83.187,0.46028567]
[1770997851004,0.48454937,83.219,83.186,12.02120119]
[1770997851201,0.48454937,83.219,83.181,12.02187268]
[1770997851706,0.48454937,83.219,83.182,0.46028567]
[1770997852294,10.76979957,83.21,83.169,30.51932702]
[1770997852491,10.76979957,83.19,83.156,0.46028567]
[1770997852695,48.06280478,83.225,83.155,12.02573507]
[1770997852696,6.28270631,83.25,83.181,0.46028567]
[1770997852894,6.28270631,83.25,83.157,40.22086188]
[1770997852895,12.01240638,83.248,83.191,0.46028567]
[1770997853117,10.76979957,83.23,83.191,0.46028567]
[1770997853333,10.76979957,83.21,83.191,0.46028567]
[1770997853492,37.58,83.246,83.169,0.46028567]
[1770997853700,10.76979957,83.22,83.181,0.46028567]
[1770997854200,10.76979957,83.21,83.183,0.46028567]
[1770997855033,10.76979957,83.22,83.183,0.46028567]
[1770997855234,0.11545063,83.249,83.191,0.46028567]
[1770997855523,0.11545063,83.249,83.182,42.07641075]
[1770997855524,12.01095301,83.258,83.221,0.46028567]
[1770997855693,10.76979957,83.26,83.221,0.46028567]
[1770997856220,10.76979957,83.25,83.221,0.46028567]
[1770997856424,10.76979957,83.26,83.223,0.46028567]
[1770997856636,10.76979957,83.26,83.203,34.84]
[1770997856637,0.11545063,83.239,83.2,10.76979957]
[1770997856801,10.76979957,83.22,83.194,12.02008214]
[1770997857001,37.58,83.232,83.201,0.46028567]
[1770997857202,0.11545063,83.251,83.194,12.02008214]
[1770997857203,37.58,83.247,83.211,0.46028567]
[1770997857401,10.76979957,83.24,83.211,0.46028567]
[1770997857816,10.76979957,83.25,83.211,0.46028567]
[1770997858015,10.76979957,83.24,83.211,0.46028567]
[1770997858216,10.76979957,83.23,83.2,10.76979957]
[1770997858419,10.76979957,83.24,83.202,12.01894185]
[1770997858614,10.76979957,83.25,83.211,0.46028567]
[1770997858929,12.01186772,83.251,83.221,0.46028567]
[1770997859111,0.11545063,83.272,83.231,0.46028567]
[1770997859112,22.71581115,83.27,83.231,0.46028567]
[1770997859335,10.70668422,83.25,83.22,10.70668422]
[1770997859533,10.70668422,83.25,83.211,0.46028567]
[1770997859821,10.70668422,83.26,83.23,10.70668422]
[1770997860013,10.70668422,83.26,83.229,0.46028567]
[1770997860211,0.11545063,83.268,83.221,0.46028567]
[1770997860520,10.70668422,83.25,83.221,0.46028567]
[1770997860730,10.70668422,83.23,83.199,0.45006888]
[1770997861112,10.70668422,83.22,83.188,0.45006888]
[1770997861535,10.70668422,83.22,83.189,12.02082006]
[1770997861734,37.58,83.245,83.201,0.45006888]
[1770997861909,10.70668422,83.24,83.201,0.45006888]
[1770997862428,12.0128778,83.244,83.21,10.70668422]
[1770997862632,10.70668422,83.24,83.207,0.45006888]
[1770997863219,37.58,83.245,83.211,0.45006888]
[1770997863425,37.58,83.245,83.19,42.07236446]
[1770997863426,37.6,83.259,83.231,0.45006888]
[1770997863617,10.70668422,83.24,83.206,0.45006888]
[1770997864121,0.11545063,83.249,83.21,10.70668422]
[1770997864425,12.01359939,83.239,83.206,0.45006888]
[1770997864621,12.01359939,83.239,83.19,0.45006888]
[1770997864622,10.70668422,83.22,83.19,0.45006888]
[1770997864822,12.01143488,83.254,83.211,0.45006888]
[1770997865123,10.70668422,83.24,83.211,0.45006888]
[1770997865308,10.70668422,83.25,83.211,0.45006888]
[1770997865508,37.82,83.253,83.22,10.70668422]
[1770997865821,37.82,83.253,83.22,11.1567531]
[1770997866023,12.01047324,83.261,83.221,0.45006888]
[1770997866223,10.70668422,83.26,83.22,11.1567531]
[1770997866535,12.0121563,83.249,83.211,0.45006888]
[1770997866719,10.70668422,83.26,83.221,0.45006888]
[1770997866920,10.70668422,83.26,83.23,10.70668422]
[1770997867316,10.70668422,83.25,83.21,23.17450324]
[1770997867628,10.70668422,83.24,83.206,0.45006888]
[1770997867828,0.11545063,83.255,83.206,0.45006888]
[1770997868132,10.70668422,83.25,83.21,10.70668422]
[1770997868331,10.70668422,83.25,83.211,0.45006888]
[1770997868531,10.70668422,83.25,83.205,12.01841855]
[1770997868532,0.11545063,83.289,83.213,0.45006888]
[1770997868727,10.70668422,83.27,83.231,0.45006888]
[1770997869127,10.70668422,83.25,83.22,10.70668422]
[1770997869323,10.70668422,83.25,83.218,0.45006888]
[1770997869523,10.70668422,83.25,83.212,12.01749747]
[1770997869717,10.70668422,83.25,83.213,0.45006888]
[1770997869924,10.70668422,83.24,83.21,0.45006888]
[1770997870231,4.61729252,83.286,83.231,0.45006888]
[1770997870232,10.70668422,83.27,83.231,0.45006888]
[1770997870418,0.11545063,83.258,83.212,0.45006888]
[1770997870613,10.70668422,83.25,83.212,0.45006888]
[1770997871036,0.11545063,83.296,83.241,0.45006888]
[1770997871243,12.00523428,83.297,83.241,0.45006888]
[1770997871244,10.82213485,83.28,83.241,0.45006888]
[1770997871444,10.70668422,83.27,83.241,0.45006888]
[1770997871919,10.82213485,83.29,83.251,0.45006888]
[1770997872122,10.70668422,83.29,83.251,0.45006888]
[1770997872645,42.02033784,83.293,83.261,0.45006888]
[1770997872839,49.88581081,83.293,83.261,0.45006888]
[1770997873054,10.70668422,83.29,83.261,0.45006888]
[1770997873218,10.70668422,83.29,83.248,0.45006888]
[1770997873419,10.70668422,83.28,83.249,12.0121563]
[1770997873620,10.70668422,83.28,83.249,12.46222518]
[1770997874241,10.70668422,83.27,83.23,10.70668422]
[1770997874438,10.70668422,83.27,83.231,0.45006888]
[1770997874624,12.00797329,83.278,83.24,11.1567531]
[1770997875036,12.00797329,83.278,83.241,0.45006888]
[1770997875527,10.70668422,83.28,83.251,0.45006888]
[1770997875718,12.0071082,83.284,83.251,0.45006888]
[1770997875917,10.70668422,83.28,83.251,0.45006888]
[1770997876118,12.0071082,83.284,83.251,0.45006888]
[1770997876318,10.70668422,83.28,83.251,0.45006888]
[1770997876744,12.0071082,83.284,83.251,0.45006888]
[1770997876944,37.92,83.289,83.253,0.45006888]
[1770997877121,10.70668422,83.28,83.253,0.45006888]
[1770997877928,37.92,83.289,83.253,0.45006888]
[1770997878320,37.92,83.289,83.261,0.45006888]
[1770997878728,12.00653155,83.288,83.261,0.45006888]
[1770997878922,0.11545063,83.279,83.24,10.70668422]
[1770997879146,10.70668422,83.28,83.251,0.45006888]
[1770997879331,37.94,83.282,83.251,0.45006888]
[1770997879524,10.70668422,83.28,83.251,0.45006888]
[1770997879719,37.96,83.284,83.251,0.45006888]
[1770997879927,10.70668422,83.3,83.27,0.45006888]
[1770997880435,37.96,83.299,83.27,0.45006888]
[1770997880824,10.70668422,83.29,83.259,0.45006888]
[1770997881030,42.01781554,83.298,83.261,0.45006888]
[1770997881428,37.94,83.297,83.261,0.45006888]
[1770997881944,10.70668422,83.29,83.253,0.45006888]
[1770997882240,4.61729252,83.326,83.252,12.01172344]
[1770997882241,10.70668422,83.33,83.281,0.45006888]
[1770997882452,37.96,83.329,83.291,0.45006888]
[1770997882960,0.11545063,83.309,83.27,10.70668422]
[1770997883166,10.70668422,83.3,83.264,0.45006888]
[1770997883442,0.11545063,83.309,83.27,11.1567531]
[1770997883644,37.94,83.308,83.271,0.45006888]
[1770997883942,37.94,83.308,83.24,72.0807304]
[1770997883943,10.70668422,83.3,83.261,0.45006888]
[1770997884354,37.96,83.299,83.261,0.45006888]
[1770997884538,10.70668422,83.3,83.261,0.45006888]
[1770997884846,12.00494603,83.299,83.261,0.45006888]
[1770997885143,0.11545063,83.298,83.261,0.45006888]
[1770997885324,10.70668422,83.29,83.251,0.45006888]
[1770997885957,10.70668422,83.29,83.261,0.45006888]
[1770997886126,10.70668422,83.29,83.251,0.45006888]
[1770997886326,10.70668422,83.28,83.251,0.45006888]
[1770997886543,10.82213485,83.29,83.251,0.45006888]
[1770997886929,42.02235588,83.289,83.261,0.45006888]
[1770997887339,10.70668422,83.3,83.271,0.45006888]
[1770997887646,10.70668422,83.3,83.261,0.45006888]
[1770997887842,10.70668422,83.29,83.261,0.45006888]
[1770997888647,0.47414569,83.269,83.199,60.09687616]
[1770997888829,0.47414569,83.257,83.2,10.70668422]
[1770997889149,10.70668422,83.24,83.2,10.70668422]
[1770997889528,10.70668422,83.25,83.21,10.70668422]
[1770997889830,10.70668422,83.25,83.192,34.86]
[1770997890035,22.71728479,83.26,83.22,10.70668422]
[1770997890436,10.70668422,83.26,83.23,10.70668422]
[1770997890640,10.70668422,83.26,83.231,0.45006888]
[1770997890933,22.71726146,83.26,83.232,0.48805407]
[1770997891137,10.70668422,83.26,83.232,0.48805407]
[1770997891329,10.70668422,83.28,83.241,0.48805407]
[1770997891530,0.46394837,83.27,83.232,0.48805407]
[1770997891760,11.17063259,83.27,83.232,0.48805407]
[1770997892326,10.70668422,83.25,83.212,0.48805407]
[1770997892546,10.70668422,83.25,83.213,0.48805407]
[1770997892547,0.46394837,83.249,83.213,0.48805407]
[1770997892857,10.70668422,83.27,83.231,0.48805407]
[1770997893146,10.70668422,83.28,83.243,0.48805407]
[1770997893564,0.46394837,83.295,83.251,0.48805407]
[1770997893730,47.98876727,83.353,83.242,42.0460825]
[1770997893731,10.70668422,83.3,83.271,0.48805407]
[1770997893932,10.70668422,83.3,83.242,42.0460825]
[1770997893933,10.70668422,83.32,83.281,0.48805407]
[1770997894432,12.00163222,83.322,83.29,10.70668422]
[1770997894632,12.00163222,83.322,83.291,0.48805407]
[1770997895148,10.70668422,83.33,83.301,0.48805407]
[1770997895358,11.99918405,83.339,83.301,0.48805407]
[1770997896528,10.70668422,83.33,83.301,0.48805407]
[1770997896727,10.70668422,83.33,83.293,0.45260181]
[1770997897059,22.7072353,83.33,83.295,0.45260181]
[1770997898152,22.7072353,83.33,83.301,0.45260181]
[1770997898553,11.99965366,83.336,83.301,0.45260181]
[1770997898861,10.70668422,83.33,83.29,11.15928603]
[1770997899030,0.2,83.35,83.284,12.00698255]
[1770997899031,12.00206435,83.319,83.284,12.00698255]
[1770997899228,37.94,83.318,83.285,0.45260181]
[1770997900236,10.70668422,83.33,83.291,0.45260181]
[1770997901248,12.00062403,83.329,83.293,0.45260181]
[1770997901559,37.96,83.328,83.301,0.45260181]
[1770997901769,12.00008258,83.333,83.301,0.45260181]
[1770997902129,37.96,83.336,83.311,0.45260181]
[1770997902334,11.99893524,83.341,83.311,0.45260181]
[1770997902740,10.70668422,83.34,83.311,0.45260181]
[1770997902938,0.4787625,83.329,83.292,0.45260181]
[1770997903138,37.96,83.345,83.238,48.05481108]
[1770997903139,12.00206435,83.319,83.282,0.45260181]
[1770997903334,11.18544672,83.31,83.272,12.0088236]
[1770997903534,11.18544672,83.31,83.273,0.45260181]
[1770997904940,37.98,83.31,83.281,0.45260181]
[1770997905255,37.98,83.311,83.281,0.45260181]
[1770997905864,37.98,83.312,83.283,0.45260181]
[1770997906233,37.98,83.312,83.29,10.70668422]
[1770997906465,37.98,83.312,83.282,12.00739655]
[1770997906466,37.98,83.312,83.283,0.45260181]
[1770997907340,37.98,83.312,83.285,0.45260181]
[1770997907662,12.00315344,83.312,83.281,0.45260181]
[1770997907956,0.4787625,83.309,83.275,12.00831266]
[1770997908262,10.70668422,83.3,83.27,10.70668422]
[1770997908463,38.4987625,83.308,83.27,10.70668422]
[1770997908640,38.4987625,83.308,83.271,0.45260181]
[1770997908840,0.4787625,83.309,83.272,0.45260181]
[1770997909049,38.02,83.31,83.28,11.15928603]
[1770997909242,12.00066933,83.329,83.293,0.45260181]
[1770997909443,10.70668422,83.32,83.293,0.45260181]
[1770997909643,10.70668422,83.31,83.277,12.00811748]
[1770997909861,10.70668422,83.31,83.276,34.74]
[1770997910061,0.4787625,83.318,83.28,11.15928603]
[1770997910359,0.4787625,83.318,83.29,10.70668422]
[1770997910551,0.4787625,83.318,83.281,0.45260181]
[1770997910857,12.00066933,83.329,83.281,0.45260181]
[1770997911159,11.99932803,83.338,83.301,0.45260181]
[1770997911558,11.99932803,83.338,83.303,0.45260181]
[1770997911943,0.2,83.35,83.311,0.45260181]
[1770997912139,0.2,83.35,83.321,0.45260181]
[1770997912140,11.99774442,83.349,83.321,0.45260181]
[1770997912646,0.2,83.35,83.303,34.74]
[1770997912647,0.2,83.35,83.331,0.45260181]
[1770997912949,0.2,83.35,83.303,34.74]
[1770997912950,11.99774442,83.349,83.319,0.45260181]
[1770997913150,11.99774442,83.349,83.32,10.70668422]
[1770997913352,0.2,83.35,83.322,0.45260181]
[1770997913541,29.984503,83.377,83.341,0.45260181]
[1770997913738,29.984503,83.377,83.322,0.45260181]
[1770997913739,11.18544672,83.36,83.322,0.45260181]
[1770997914363,10.70668422,83.37,83.331,0.45260181]
[1770997914551,10.70668422,83.36,83.331,0.45260181]
[1770997914750,29.984503,83.377,83.341,0.45260181]
[1770997914950,10.70668422,83.37,83.341,0.45260181]
[1770997915355,11.99644905,83.358,83.325,12.45376193]
[1770997915864,11.99644905,83.358,83.325,0.45260181]
[1770997916079,11.99644905,83.358,83.309,30.0086428]
[1770997916080,11.99385794,83.377,83.341,0.45260181]
[1770997917355,11.99385794,83.377,83.342,11.99875212]
[1770997917563,30.45507496,83.4,83.37,10.70668422]
[1770997917740,11.99055144,83.399,83.371,0.45260181]
[1770997918552,41.96693005,83.399,83.371,0.45260181]
[1770997919150,11.99055144,83.399,83.371,0.45260181]
[1770997919347,11.98968886,83.405,83.371,0.45260181]
[1770997919547,12.46643916,83.419,83.381,0.45260181]
[1770997919759,10.70668422,83.41,83.381,0.45260181]
[1770997919950,0.4787625,83.409,83.37,10.70668422]
[1770997920163,0.4787625,83.415,83.353,0.45260181]
[1770997920465,10.70668422,83.41,83.371,0.45260181]
[1770997920666,41.95686833,83.419,83.381,0.49251694]
[1770997920853,38.08,83.409,83.381,0.49251694]
[1770997921047,0.49438293,83.399,83.36,10.66536118]
[1770997921247,0.49438293,83.399,83.358,0.49251694]
[1770997921248,0.49438293,83.379,83.34,10.66536118]
[1770997921446,10.66536118,83.37,83.34,10.66536118]
[1770997921651,10.66536118,83.35,83.314,0.49251694]
[1770997921863,10.66536118,83.35,83.316,0.49251694]
[1770997922169,10.66536118,83.37,83.331,0.49251694]
[1770997922359,10.66536118,83.36,83.331,0.49251694]
[1770997922555,10.66536118,83.37,83.331,0.49251694]
[1770997922759,10.66536118,83.36,83.331,0.49251694]
[1770997922961,10.66536118,83.36,83.315,12.00264058]
[1770997923270,48.74536118,83.36,83.321,0.49251694]
[1770997923472,52.58264094,83.394,83.301,34.64]
[1770997923473,10.66536118,83.38,83.341,0.49251694]
[1770997923669,10.66536118,83.37,83.341,0.49251694]
[1770997924043,38.08,83.376,83.341,0.49251694]
[1770997924357,10.66536118,83.37,83.341,0.49251694]
[1770997924544,11.9925646,83.385,83.351,0.49251694]
[1770997925143,10.66536118,83.39,83.351,0.49251694]
[1770997925376,38.12,83.399,83.361,0.49251694]
[1770997925576,0.49438293,83.369,83.321,0.49251694]
[1770997925748,10.66536118,83.35,83.311,0.49251694]
[1770997926068,10.66536118,83.34,83.311,0.49251694]
[1770997926272,10.66536118,83.36,83.311,0.49251694]
[1770997926493,10.66536118,83.37,83.331,0.49251694]
[1770997926649,38.08,83.373,83.341,0.49251694]
[1770997926973,10.66536118,83.36,83.321,0.49251694]
[1770997927775,11.99630513,83.359,83.322,12.49414916]
[1770997928179,10.66536118,83.34,83.311,12.49572093]
[1770997928374,10.66536118,83.34,83.302,0.49251694]
[1770997928561,10.66536118,83.33,83.302,0.49251694]
[1770997928761,10.66536118,83.33,83.287,0.49251694]
[1770997929077,10.66536118,83.33,83.291,0.49251694]
[1770997929276,10.66536118,83.32,83.291,0.49251694]
[1770997929461,10.66536118,83.32,83.28,0.49251694]
[1770997929665,38.08,83.344,83.266,34.6]
[1770997929666,42.01226757,83.309,83.267,0.49251694]
[1770997929864,42.01226757,83.309,83.269,0.49251694]
[1770997930061,12.00350502,83.309,83.271,0.49251694]
[1770997930266,10.66536118,83.3,83.271,0.49251694]
[1770997931070,38.06,83.305,83.271,0.49251694]
[1770997931470,10.66536118,83.3,83.271,0.49251694]
[1770997931666,10.66536118,83.3,83.26,10.66536118]
[1770997931667,12.00494603,83.299,83.26,10.66536118]
[1770997931880,42.01731112,83.299,83.261,0.49251694]
[1770997932083,10.66536118,83.29,83.251,0.49251694]
[1770997932377,38.08,83.306,83.271,0.49251694]
[1770997933170,10.66536118,83.31,83.271,0.49251694]
[1770997933480,10.66536118,83.3,83.258,0.49251694]
[1770997933675,38.59438293,83.309,83.259,12.01071355]
[1770997933676,10.66536118,83.29,83.259,12.01071355]
[1770997933886,10.66536118,83.29,83.24,10.66536118]
[1770997933887,10.66536118,83.27,83.231,0.49251694]
[1770997934057,42.01781554,83.298,83.241,0.49251694]
[1770997934058,38.08,83.282,83.241,0.49251694]
[1770997934398,38.08,83.289,83.251,0.49251694]
[1770997934577,12.00509015,83.298,83.261,0.49251694]
[1770997934965,11.15974411,83.29,83.25,0.49251694]
[1770997935163,0.49438293,83.289,83.251,0.49251694]
[1770997935879,10.66536118,83.27,83.239,12.01359939]
[1770997936274,38.1,83.277,83.24,10.66536118]
[1770997936476,38.1,83.277,83.241,0.49251694]
[1770997936682,38.59438293,83.277,83.241,0.49251694]
[1770997937070,38.1,83.277,83.241,0.49251694]
[1770997937390,10.66536118,83.28,83.241,0.49251694]
[1770997937685,0.49438293,83.279,83.241,0.49251694]
[1770997937890,12.00797329,83.278,83.242,12.01316643]
[1770997938068,10.66536118,83.27,83.242,12.01316643]
[1770997938273,12.50235622,83.278,83.23,12.01477592]
[1770997938274,10.66536118,83.26,83.23,12.01477592]
[1770997938468,10.66536118,83.26,83.22,0.49251694]
[1770997938686,42.02790652,83.278,83.21,0.49251694]
[1770997938687,0.49438293,83.25,83.21,0.49251694]
[1770997938877,38.14,83.249,83.221,0.49251694]
[1770997939877,12.0121563,83.249,83.221,0.49251694]
[1770997940376,38.14,83.253,83.223,0.49251694]
[1770997940571,10.66536118,83.25,83.223,0.49251694]
[1770997940773,10.66536118,83.27,83.231,0.49251694]
[1770997940974,12.0071082,83.284,83.241,0.49251694]
[1770997941168,10.66536118,83.28,83.241,0.49251694]
[1770997941369,12.0071082,83.284,83.241,0.49251694]
[1770997941679,10.66536118,83.28,83.241,0.49251694]
[1770997941895,12.0071082,83.284,83.241,0.49251694]
[1770997942085,12.0071082,83.284,83.243,0.49251694]
[1770997942273,10.66536118,83.25,83.217,12.01677541]
[1770997942593,10.66536118,83.24,83.21,0.49251694]
[1770997942778,10.66536118,83.25,83.211,0.49251694]
[1770997943098,38.12,83.254,83.211,0.49251694]
[1770997943388,10.66536118,83.25,83.211,0.49251694]
[1770997943600,0.49438293,83.249,83.211,0.49251694]
[1770997944096,12.0121563,83.249,83.213,0.49251694]
[1770997944605,10.66536118,83.24,83.213,0.49251694]
[1770997944891,10.66536118,83.24,83.202,0.49251694]
[1770997945066,10.66536118,83.23,83.199,12.01931789]
[1770997945469,10.66536118,83.24,83.201,0.49251694]
[1770997945983,11.15974411,83.24,83.201,0.49251694]
[1770997946190,12.01359939,83.239,83.202,12.51145879]
[1770997946368,11.93550413,83.239,83.202,12.51145879]
[1770997946791,11.93550413,83.239,83.203,0.49251694]
[1770997946993,0.49438293,83.237,83.197,12.01952761]
[1770997947165,0.49438293,83.237,83.2,10.66536118]
[1770997947490,0.49438293,83.237,83.197,12.01952761]
[1770997947491,12.0130088,83.244,83.211,0.49251694]
[1770997947881,0.49438293,83.272,83.23,10.66536118]
[1770997948081,0.49438293,83.269,83.23,10.66536118]
[1770997948289,10.66536118,83.26,83.223,0.49251694]
[1770997948790,10.66536118,83.24,83.208,12.01807518]
[1770997949191,0.49438293,83.239,83.201,12.0190863]
[1770997949411,10.66536118,83.23,83.201,12.0190863]
[1770997949578,150.11408669,83.27,83.183,0.49251694]
[1770997949579,10.66536118,83.21,83.183,0.49251694]
[1770997949889,0.49438293,83.219,83.183,0.49251694]
[1770997950071,10.66536118,83.23,83.2,10.66536118]
[1770997950271,48.03650774,83.27,83.183,12.02159054]
[1770997950272,0.49438293,83.25,83.22,10.66536118]
[1770997950576,0.49438293,83.259,83.22,10.66536118]
[1770997950786,38.14,83.258,83.22,11.15921107]
[1770997951094,12.00927115,83.269,83.231,0.49384989]
[1770997951289,12.00669336,83.287,83.25,10.66536118]
[1770997951598,12.00610139,83.291,83.26,10.66536118]
[1770997951898,10.66536118,83.29,83.26,10.66536118]
[1770997952075,12.0078291,83.279,83.26,10.66536118]
[1770997952392,12.0078291,83.279,83.24,10.66536118]
[1770997952393,0.46802564,83.278,83.24,10.66536118]
[1770997952578,12.00681439,83.287,83.26,10.66536118]
[1770997952774,12.00681439,83.287,83.251,0.49384989]
[1770997953172,12.47484003,83.287,83.251,0.49384989]
[1770997953488,0.46802564,83.286,83.25,10.66536118]
[1770997953692,10.66536118,83.28,83.241,0.49384989]
[1770997954197,10.66536118,83.27,83.24,10.66536118]
[1770997954379,0.46802564,83.268,83.23,10.66536118]
[1770997954583,0.46802564,83.249,83.213,12.01726032]
[1770997954889,10.66536118,83.25,83.221,0.49384989]
[1770997955305,10.66536118,83.25,83.179,48.08853977]
[1770997955306,11.13338682,83.23,83.193,12.02011973]
[1770997955795,0.46802564,83.241,83.2,10.66536118]
[1770997955998,27.4,83.242,83.201,0.49384989]
[1770997955999,0.46802564,83.239,83.201,0.49384989]
[1770997956202,12.01307462,83.243,83.211,12.01764189]
[1770997956496,38.14,83.253,83.22,10.66536118]
[1770997957498,12.01172344,83.252,83.221,12.01619783]
[1770997957678,10.66536118,83.27,83.24,10.66536118]
[1770997958013,10.66536118,83.27,83.221,12.01619783]
[1770997958014,12.00925457,83.27,83.23,10.66536118]
[1770997958218,38.16,83.286,83.25,10.66536118]
[1770997959186,0.47535813,83.319,83.28,10.66536118]
[1770997959391,12.00150616,83.323,83.29,10.66536118]
[1770997959683,12.00150616,83.323,83.263,34.52]
[1770997959684,42.47250231,83.339,83.301,12.0046578]
[1770997959989,10.66536118,83.35,83.31,10.66536118]
[1770997960181,47.964083,83.396,83.301,42.01630231]
[1770997960182,10.66536118,83.34,83.301,12.0046578]
[1770997960495,38.18,83.344,83.301,12.0046578]
[1770997960698,11.99774442,83.349,83.32,10.66536118]
[1770997960901,47.95650737,83.409,83.341,0.49918588]
[1770997960902,0.47535813,83.393,83.341,0.49918588]
[1770997961087,10.66536118,83.38,83.341,0.49918588]
[1770997961284,0.47535813,83.379,83.341,0.49918588]
[1770997961599,10.66536118,83.4,83.361,0.49918588]
[1770997961910,10.66536118,83.39,83.357,11.99646562]
[1770997962101,10.66536118,83.39,83.341,34.52]
[1770997962102,10.66536118,83.37,83.333,0.49918588]
[1770997962297,29.97530141,83.402,83.35,10.66536118]
[1770997962298,38.2,83.383,83.35,10.66536118]
[1770997962485,38.2,83.383,83.351,0.49918588]
[1770997962684,10.66536118,83.39,83.351,0.49918588]